[Event "Titled Tuesday Blitz January 03 Early 2023"]
[White "Tharushi, T H D Niklesha"]
[Black "Ljukin, Sergei"]
[WhiteFideId "9918264"]
[BlackFideId "14102200"]
[WhiteElo "1570"]
[BlackElo "2362"]
[Result "0-1"]
[Round "02"]
[TimeControl "180+2"]
[Date "2023.01.03"]
[WhiteClock "0:00:14"]
[BlackClock "0:01:07"]

1. e4 {[%clk 0:03:00]}  e6 {[%clk 0:03:00]} 2. d4 {[%clk 0:02:59]}  d5 {[%clk 0:03:00]} 3. exd5 {[%clk 0:02:58]}  exd5 {[%clk 0:03:00]} 4. c3 {[%clk 0:02:58]}  Nf6 {[%clk 0:03:01]} 5. Bd3 {[%clk 0:02:58]}  c5 {[%clk 0:03:01]} 6. Nf3 {[%clk 0:02:59]}  Nc6 {[%clk 0:03:02]} 7. O-O {[%clk 0:02:58]}  Be7 {[%clk 0:03:02]} 8. Re1 {[%clk 0:02:58]}  O-O {[%clk 0:03:03]} 9. Bf4 {[%clk 0:02:58]}  Qb6 {[%clk 0:03:02]} 10. Qb3 {[%clk 0:02:24]}  c4 {[%clk 0:02:57]} 11. Qxb6 {[%clk 0:02:23]}  axb6 {[%clk 0:02:57]} 12. Bc2 {[%clk 0:02:23]}  b5 {[%clk 0:02:57]} 13. a4 {[%clk 0:02:16]}  b4 {[%clk 0:02:58]} 14. Be5 {[%clk 0:01:58]}  b3 {[%clk 0:02:55]} 15. Bd1 {[%clk 0:01:58]}  b5 {[%clk 0:02:53]} 16. Na3 {[%clk 0:01:34]}  Rxa4 {[%clk 0:02:51]} 17. Be2 {[%clk 0:01:14]}  Ba6 {[%clk 0:02:31]} 18. Nd2 {[%clk 0:00:57]}  b4 {[%clk 0:02:24]} 19. Bf3 {[%clk 0:00:43]}  bxc3 {[%clk 0:02:21]} 20. Bxf6 {[%clk 0:00:39]}  cxb2 {[%clk 0:02:01]} 21. Rab1 {[%clk 0:00:33]}  c3 {[%clk 0:01:35]} 22. Nxb3 {[%clk 0:00:19]}  Rxa3 {[%clk 0:01:26]} 23. Bxd5 {[%clk 0:00:19]}  Bxf6 {[%clk 0:01:20]} 24. Nc5 {[%clk 0:00:18]}  Nxd4 {[%clk 0:01:15]} 25. Nxa6 {[%clk 0:00:18]}  Rxa6 {[%clk 0:01:12]} 26. Bc4 {[%clk 0:00:18]}  Rb6 {[%clk 0:01:09]} 27. Bd3 {[%clk 0:00:16]}  c2 {[%clk 0:01:07]} 28. Bxc2 {[%clk 0:00:16]}  Nxc2 {[%clk 0:01:08]} 29. Re2 {[%clk 0:00:17]}  Na3 {[%clk 0:01:07]} 30. Ree1 {[%clk 0:00:14]}  Nxb1 {[%clk 0:01:07]} 31. Rxb1 {[%clk 0:00:14]}  Rc8 {[%clk 0:01:07]} 0-1


[Site "https://www.chess.com"]

[Event "Titled Tuesday Blitz January 03 Early 2023"]
[White "Goncalves, Davi Sulzbacher"]
[Black "Vargas, Mauricio"]
[WhiteFideId "2154510"]
[BlackFideId "4404572"]
[WhiteElo "2282"]
[BlackElo "2035"]
[Result "1-0"]
[Round "02"]
[TimeControl "180+2"]
[Date "2023.01.03"]
[WhiteClock "0:01:36"]
[BlackClock "0:00:05"]

1. Nf3 {[%clk 0:02:58]}  c5 {[%clk 0:02:57]} 2. g3 {[%clk 0:02:58]}  Nc6 {[%clk 0:02:55]} 3. Bg2 {[%clk 0:02:59]}  e6 {[%clk 0:02:47]} 4. O-O {[%clk 0:03:00]}  d5 {[%clk 0:02:46]} 5. d4 {[%clk 0:03:00]}  cxd4 {[%clk 0:02:45]} 6. Nxd4 {[%clk 0:03:01]}  Nf6 {[%clk 0:02:42]} 7. c4 {[%clk 0:03:00]}  Nxd4 {[%clk 0:02:35]} 8. Qxd4 {[%clk 0:02:59]}  b6 {[%clk 0:02:28]} 9. cxd5 {[%clk 0:02:58]}  Nxd5 {[%clk 0:02:25]} 10. Nc3 {[%clk 0:02:50]}  Bb7 {[%clk 0:02:21]} 11. Nxd5 {[%clk 0:02:07]}  Bxd5 {[%clk 0:02:12]} 12. Bxd5 {[%clk 0:02:07]}  Qxd5 {[%clk 0:02:11]} 13. Qxd5 {[%clk 0:02:07]}  exd5 {[%clk 0:02:11]} 14. Rd1 {[%clk 0:02:08]}  O-O-O {[%clk 0:02:08]} 15. Bg5 {[%clk 0:02:07]}  Rd7 {[%clk 0:02:02]} 16. Rac1+ {[%clk 0:02:06]}  Kb7 {[%clk 0:02:01]} 17. e4 {[%clk 0:02:03]}  d4 {[%clk 0:01:52]} 18. Rc4 {[%clk 0:02:02]}  f6 {[%clk 0:01:47]} 19. Bf4 {[%clk 0:01:59]}  g5 {[%clk 0:01:37]} 20. Be3 {[%clk 0:01:59]}  d3 {[%clk 0:01:30]} 21. Rc3 {[%clk 0:01:58]}  Be7 {[%clk 0:00:18]} 22. Rcxd3 {[%clk 0:01:57]}  Rc7 {[%clk 0:00:15]} 23. Kg2 {[%clk 0:01:47]}  Rhc8 {[%clk 0:00:14]} 24. Rd7 {[%clk 0:01:38]}  Rxd7 {[%clk 0:00:05]} 25. Rxd7+ {[%clk 0:01:37]}  Rc7 {[%clk 0:00:05]} 26. Rd2 {[%clk 0:01:36]} 1-0


[Site "https://www.chess.com"]

[Event "Titled Tuesday Blitz January 03 Early 2023"]
[White "Dzierzak, Radoslaw"]
[Black "Mohammadian, Mohammad"]
[WhiteFideId "1161407"]
[BlackFideId "12566055"]
[WhiteElo "2220"]
[BlackElo "1398"]
[Result "1-0"]
[Round "02"]
[TimeControl "180+2"]
[Date "2023.01.03"]
[WhiteClock "0:00:41"]
[BlackClock "0:00:01"]

1. e4 {[%clk 0:03:00]}  e5 {[%clk 0:02:56]} 2. Nf3 {[%clk 0:03:00]}  Nc6 {[%clk 0:02:55]} 3. Bc4 {[%clk 0:03:01]}  Bc5 {[%clk 0:02:54]} 4. O-O {[%clk 0:02:59]}  Nf6 {[%clk 0:02:52]} 5. d3 {[%clk 0:02:59]}  h6 {[%clk 0:02:52]} 6. c3 {[%clk 0:02:58]}  O-O {[%clk 0:02:50]} 7. Re1 {[%clk 0:02:53]}  d6 {[%clk 0:02:49]} 8. Bb3 {[%clk 0:02:44]}  Bg4 {[%clk 0:02:46]} 9. h3 {[%clk 0:02:42]}  Bh5 {[%clk 0:02:46]} 10. Nbd2 {[%clk 0:02:41]}  a6 {[%clk 0:02:45]} 11. Nf1 {[%clk 0:02:37]}  Bb6 {[%clk 0:02:44]} 12. Ng3 {[%clk 0:02:37]}  Bg6 {[%clk 0:02:43]} 13. Nh4 {[%clk 0:02:32]}  Bh7 {[%clk 0:02:29]} 14. Nhf5 {[%clk 0:02:28]}  Qd7 {[%clk 0:02:13]} 15. Qf3 {[%clk 0:02:22]}  Ne8 {[%clk 0:02:02]} 16. Qg4 {[%clk 0:01:52]}  Kh8 {[%clk 0:01:47]} 17. Qh5 {[%clk 0:01:18]}  Nf6 {[%clk 0:01:33]} 18. Qh4 {[%clk 0:01:17]}  Ne8 {[%clk 0:01:14]} 19. Be3 {[%clk 0:01:07]}  Bxe3 {[%clk 0:01:11]} 20. Rxe3 {[%clk 0:01:08]}  Qd8 {[%clk 0:00:58]} 21. Qg4 {[%clk 0:01:05]}  Qf6 {[%clk 0:00:55]} 22. Rf3 {[%clk 0:01:04]}  Qg5 {[%clk 0:00:47]} 23. Qxg5 {[%clk 0:01:02]}  hxg5 {[%clk 0:00:47]} 24. Ne3 {[%clk 0:01:01]}  f6 {[%clk 0:00:44]} 25. Nd5 {[%clk 0:01:01]}  Rc8 {[%clk 0:00:39]} 26. Re1 {[%clk 0:00:55]}  Na5 {[%clk 0:00:33]} 27. Bc2 {[%clk 0:00:54]}  b6 {[%clk 0:00:26]} 28. b4 {[%clk 0:00:54]}  Nb7 {[%clk 0:00:26]} 29. Ba4 {[%clk 0:00:53]}  b5 {[%clk 0:00:21]} 30. Bb3 {[%clk 0:00:53]}  Nd8 {[%clk 0:00:20]} 31. Ne7 {[%clk 0:00:51]}  Nf7 {[%clk 0:00:11]} 32. Nxc8 {[%clk 0:00:50]}  c5 {[%clk 0:00:11]} 33. bxc5 {[%clk 0:00:48]}  Nc7 {[%clk 0:00:10]} 34. Nxd6 {[%clk 0:00:47]}  Nxd6 {[%clk 0:00:09]} 35. cxd6 {[%clk 0:00:48]}  Ne8 {[%clk 0:00:09]} 36. d7 {[%clk 0:00:48]}  Nc7 {[%clk 0:00:09]} 37. d4 {[%clk 0:00:47]}  exd4 {[%clk 0:00:08]} 38. cxd4 {[%clk 0:00:47]}  Rd8 {[%clk 0:00:08]} 39. e5 {[%clk 0:00:46]}  fxe5 {[%clk 0:00:08]} 40. dxe5 {[%clk 0:00:47]}  Rxd7 {[%clk 0:00:05]} 41. Rf8+ {[%clk 0:00:46]}  Bg8 {[%clk 0:00:01]} 42. Rxg8+ {[%clk 0:00:47]}  Kh7 {[%clk 0:00:01]} 43. e6 {[%clk 0:00:41]}  g6 {[%clk 0:00:01]} 44. exd7 {[%clk 0:00:41]} 1-0


[Site "https://www.chess.com"]

[Event "Titled Tuesday Blitz January 03 Early 2023"]
[White "Shubenkova, Veronika"]
[Black "Butolo, Alexandru-Mircea"]
[WhiteFideId "44124040"]
[BlackFideId "1261649"]
[WhiteElo "1960"]
[BlackElo "2033"]
[Result "1/2-1/2"]
[Round "02"]
[TimeControl "180+2"]
[Date "2023.01.03"]
[WhiteClock "0:01:18"]
[BlackClock "0:00:13"]

1. e4 {[%clk 0:02:41]}  c5 {[%clk 0:02:50]} 2. Nc3 {[%clk 0:02:20]}  Nc6 {[%clk 0:02:49]} 3. g3 {[%clk 0:02:20]}  g6 {[%clk 0:02:47]} 4. Bg2 {[%clk 0:02:20]}  Bg7 {[%clk 0:02:48]} 5. f4 {[%clk 0:02:20]}  e6 {[%clk 0:02:47]} 6. Nf3 {[%clk 0:02:21]}  Nge7 {[%clk 0:02:48]} 7. d3 {[%clk 0:02:21]}  O-O {[%clk 0:02:48]} 8. O-O {[%clk 0:02:21]}  Rb8 {[%clk 0:02:48]} 9. Rb1 {[%clk 0:02:21]}  b5 {[%clk 0:02:47]} 10. Be3 {[%clk 0:02:21]}  Nd4 {[%clk 0:02:45]} 11. Ne2 {[%clk 0:02:22]}  Nec6 {[%clk 0:02:43]} 12. c3 {[%clk 0:02:21]}  Nxf3+ {[%clk 0:02:30]} 13. Bxf3 {[%clk 0:02:21]}  d6 {[%clk 0:02:29]} 14. g4 {[%clk 0:02:19]}  Qc7 {[%clk 0:01:51]} 15. Ng3 {[%clk 0:02:14]}  b4 {[%clk 0:01:48]} 16. Qc2 {[%clk 0:02:13]}  Ba6 {[%clk 0:01:32]} 17. c4 {[%clk 0:02:12]}  Nd4 {[%clk 0:01:27]} 18. Bxd4 {[%clk 0:02:11]}  Bxd4+ {[%clk 0:01:27]} 19. Kh1 {[%clk 0:02:11]}  Bb7 {[%clk 0:01:18]} 20. b3 {[%clk 0:02:10]}  d5 {[%clk 0:01:12]} 21. cxd5 {[%clk 0:02:08]}  exd5 {[%clk 0:01:11]} 22. exd5 {[%clk 0:02:02]}  Qxf4 {[%clk 0:01:08]} 23. Ne2 {[%clk 0:01:56]}  Qe5 {[%clk 0:00:55]} 24. Nxd4 {[%clk 0:01:56]}  Qxd4 {[%clk 0:00:55]} 25. Qc4 {[%clk 0:01:55]}  Rbd8 {[%clk 0:00:33]} 26. Rbc1 {[%clk 0:01:42]}  Bxd5 {[%clk 0:00:32]} 27. Qxc5 {[%clk 0:01:38]}  Qxd3 {[%clk 0:00:24]} 28. Bxd5 {[%clk 0:01:36]}  Rxd5 {[%clk 0:00:23]} 29. Qxb4 {[%clk 0:01:33]}  Rd4 {[%clk 0:00:19]} 30. Qb7 {[%clk 0:01:32]}  Rxg4 {[%clk 0:00:19]} 31. Qf3 {[%clk 0:01:31]}  Qxf3+ {[%clk 0:00:19]} 32. Rxf3 {[%clk 0:01:31]}  Rd4 {[%clk 0:00:18]} 33. Rf2 {[%clk 0:01:29]}  Rfd8 {[%clk 0:00:17]} 34. Rc7 {[%clk 0:01:28]}  R8d7 {[%clk 0:00:18]} 35. Rc8+ {[%clk 0:01:28]}  Kg7 {[%clk 0:00:18]} 36. Ra8 {[%clk 0:01:28]}  f5 {[%clk 0:00:18]} 37. Re2 {[%clk 0:01:28]}  f4 {[%clk 0:00:17]} 38. Kg2 {[%clk 0:01:27]}  Rd3 {[%clk 0:00:17]} 39. Kf2 {[%clk 0:01:27]}  f3 {[%clk 0:00:17]} 40. Rc2 {[%clk 0:01:26]}  Rd2+ {[%clk 0:00:17]} 41. Rxd2 {[%clk 0:01:27]}  Rxd2+ {[%clk 0:00:17]} 42. Kxf3 {[%clk 0:01:27]}  Rxh2 {[%clk 0:00:16]} 43. Rxa7+ {[%clk 0:01:27]}  Kf6 {[%clk 0:00:16]} 44. b4 {[%clk 0:01:27]}  Rb2 {[%clk 0:00:15]} 45. a3 {[%clk 0:01:27]}  h5 {[%clk 0:00:14]} 46. Ra6+ {[%clk 0:01:22]}  Kf5 {[%clk 0:00:13]} 47. Ra5+ {[%clk 0:01:22]}  Kf6 {[%clk 0:00:13]} 48. b5 {[%clk 0:01:19]}  Ke6 {[%clk 0:00:12]} 49. a4 {[%clk 0:01:18]}  Kd5 {[%clk 0:00:12]} 50. b6+ {[%clk 0:01:17]}  Kc6 {[%clk 0:00:12]} 51. Rg5 {[%clk 0:01:15]}  Kxb6 {[%clk 0:00:11]} 52. Rxg6+ {[%clk 0:01:15]}  Ka5 {[%clk 0:00:11]} 53. Rg5+ {[%clk 0:01:15]}  Kxa4 {[%clk 0:00:11]} 54. Rxh5 {[%clk 0:01:15]}  Rb3+ {[%clk 0:00:12]} 55. Kf4 {[%clk 0:01:15]}  Rb4+ {[%clk 0:00:12]} 56. Kg5 {[%clk 0:01:16]}  Rb5+ {[%clk 0:00:12]} 57. Kg6 {[%clk 0:01:17]}  Rxh5 {[%clk 0:00:13]} 58. Kxh5 {[%clk 0:01:18]} 1/2-1/2


[Site "https://www.chess.com"]

[Event "Titled Tuesday Blitz January 03 Early 2023"]
[White "Carlsen, Magnus"]
[Black "Nigmatov, Ortik"]
[WhiteFideId "1503014"]
[BlackFideId "14202131"]
[WhiteElo "2853"]
[BlackElo "2438"]
[Result "1-0"]
[Round "03"]
[TimeControl "180+2"]
[Date "2023.01.03"]
[WhiteClock "0:00:20"]
[BlackClock "0:00:03"]

1. d4 {[%clk 0:03:00]}  Nf6 {[%clk 0:02:59]} 2. c4 {[%clk 0:02:59]}  e6 {[%clk 0:02:58]} 3. Nf3 {[%clk 0:02:59]}  d5 {[%clk 0:02:58]} 4. e3 {[%clk 0:02:57]}  Be7 {[%clk 0:02:57]} 5. b3 {[%clk 0:02:57]}  O-O {[%clk 0:02:57]} 6. Bb2 {[%clk 0:02:56]}  b6 {[%clk 0:02:57]} 7. Nc3 {[%clk 0:02:55]}  Bb7 {[%clk 0:02:56]} 8. Bd3 {[%clk 0:02:54]}  c5 {[%clk 0:02:55]} 9. O-O {[%clk 0:02:54]}  cxd4 {[%clk 0:02:54]} 10. exd4 {[%clk 0:02:54]}  Nc6 {[%clk 0:02:54]} 11. Qe2 {[%clk 0:02:53]}  Rc8 {[%clk 0:02:45]} 12. Rad1 {[%clk 0:02:53]}  Re8 {[%clk 0:02:32]} 13. Rfe1 {[%clk 0:02:28]}  Bf8 {[%clk 0:02:32]} 14. h4 {[%clk 0:02:26]}  dxc4 {[%clk 0:02:21]} 15. bxc4 {[%clk 0:02:26]}  Nb4 {[%clk 0:02:22]} 16. Bb1 {[%clk 0:02:25]}  Ba6 {[%clk 0:02:22]} 17. Ne5 {[%clk 0:02:19]}  Nbd5 {[%clk 0:02:19]} 18. Nb5 {[%clk 0:01:25]}  Bxb5 {[%clk 0:02:02]} 19. cxb5 {[%clk 0:01:26]}  Bb4 {[%clk 0:02:02]} 20. Rf1 {[%clk 0:01:26]}  Qd6 {[%clk 0:01:58]} 21. Nc6 {[%clk 0:01:22]}  a5 {[%clk 0:01:38]} 22. g3 {[%clk 0:01:16]}  Bc3 {[%clk 0:01:35]} 23. Bc1 {[%clk 0:01:15]}  Nb4 {[%clk 0:01:09]} 24. Bf4 {[%clk 0:00:52]}  Qd5 {[%clk 0:01:09]} 25. Be5 {[%clk 0:00:53]}  Nxc6 {[%clk 0:00:49]} 26. bxc6 {[%clk 0:00:54]}  Qxc6 {[%clk 0:00:49]} 27. Bxf6 {[%clk 0:00:52]}  gxf6 {[%clk 0:00:50]} 28. d5 {[%clk 0:00:46]}  exd5 {[%clk 0:00:22]} 29. Qg4+ {[%clk 0:00:43]}  Kf8 {[%clk 0:00:22]} 30. Bxh7 {[%clk 0:00:41]}  Re5 {[%clk 0:00:23]} 31. Bf5 {[%clk 0:00:39]}  Rd8 {[%clk 0:00:20]} 32. h5 {[%clk 0:00:39]}  d4 {[%clk 0:00:16]} 33. h6 {[%clk 0:00:37]}  Qd5 {[%clk 0:00:16]} 34. h7 {[%clk 0:00:31]}  Ke7 {[%clk 0:00:16]} 35. Bc2 {[%clk 0:00:26]}  Rh8 {[%clk 0:00:15]} 36. Qg7 {[%clk 0:00:20]}  Rh5 {[%clk 0:00:15]} 37. Rfe1+ {[%clk 0:00:20]}  Bxe1 {[%clk 0:00:12]} 38. Rxe1+ {[%clk 0:00:21]}  Kd7 {[%clk 0:00:13]} 39. Be4 {[%clk 0:00:21]}  R8xh7 {[%clk 0:00:10]} 40. Qxh7 {[%clk 0:00:21]}  Rxh7 {[%clk 0:00:09]} 41. Bxd5 {[%clk 0:00:21]}  Kd6 {[%clk 0:00:09]} 42. Bc4 {[%clk 0:00:20]}  Kc5 {[%clk 0:00:08]} 43. Bd3 {[%clk 0:00:20]}  Rh5 {[%clk 0:00:04]} 44. Rb1 {[%clk 0:00:20]}  Rh8 {[%clk 0:00:02]} 45. Rb5+ {[%clk 0:00:19]}  Kc6 {[%clk 0:00:03]} 46. Rf5 {[%clk 0:00:20]} 1-0


[Site "https://www.chess.com"]

[Event "Titled Tuesday Blitz January 03 Early 2023"]
[White "Nepomniachtchi, Ian"]
[Black "Costachi, Mihnea"]
[WhiteFideId "4168119"]
[BlackFideId "1217518"]
[WhiteElo "2794"]
[BlackElo "2476"]
[Result "1-0"]
[Round "03"]
[TimeControl "180+2"]
[Date "2023.01.03"]
[WhiteClock "0:02:13"]
[BlackClock "0:00:15"]

1. e4 {[%clk 0:03:00]}  e5 {[%clk 0:02:59]} 2. f4 {[%clk 0:03:00]}  Bc5 {[%clk 0:02:55]} 3. Nf3 {[%clk 0:03:00]}  d6 {[%clk 0:02:55]} 4. c3 {[%clk 0:02:59]}  Nf6 {[%clk 0:02:54]} 5. d4 {[%clk 0:02:58]}  exd4 {[%clk 0:02:55]} 6. cxd4 {[%clk 0:02:58]}  Bb6 {[%clk 0:02:55]} 7. Nc3 {[%clk 0:02:58]}  O-O {[%clk 0:02:53]} 8. e5 {[%clk 0:02:57]}  dxe5 {[%clk 0:02:53]} 9. fxe5 {[%clk 0:02:57]}  Nd5 {[%clk 0:02:54]} 10. Bc4 {[%clk 0:02:54]}  Be6 {[%clk 0:02:45]} 11. Qb3 {[%clk 0:02:52]}  c6 {[%clk 0:02:40]} 12. O-O {[%clk 0:02:51]}  h6 {[%clk 0:02:33]} 13. Kh1 {[%clk 0:02:50]}  Na6 {[%clk 0:02:27]} 14. Ne4 {[%clk 0:02:45]}  Nac7 {[%clk 0:02:19]} 15. Nd6 {[%clk 0:02:45]}  Rb8 {[%clk 0:02:10]} 16. Bd2 {[%clk 0:02:44]}  Ne8 {[%clk 0:02:07]} 17. Ne4 {[%clk 0:02:42]}  Ndc7 {[%clk 0:02:05]} 18. Ng3 {[%clk 0:02:41]}  Bxd4 {[%clk 0:01:58]} 19. Rad1 {[%clk 0:02:40]}  c5 {[%clk 0:01:52]} 20. Nxd4 {[%clk 0:02:39]}  Bxc4 {[%clk 0:01:46]} 21. Qxc4 {[%clk 0:02:39]}  Qxd4 {[%clk 0:01:32]} 22. Qxd4 {[%clk 0:02:39]}  cxd4 {[%clk 0:01:33]} 23. Bb4 {[%clk 0:02:39]}  Rd8 {[%clk 0:01:27]} 24. Nf5 {[%clk 0:02:33]}  Ne6 {[%clk 0:01:21]} 25. Rd2 {[%clk 0:02:30]}  N8c7 {[%clk 0:01:13]} 26. Bxf8 {[%clk 0:02:30]}  Kxf8 {[%clk 0:01:14]} 27. Rfd1 {[%clk 0:02:30]}  Rd5 {[%clk 0:00:56]} 28. Nxd4 {[%clk 0:02:29]}  Rxe5 {[%clk 0:00:57]} 29. Nxe6+ {[%clk 0:02:29]}  Nxe6 {[%clk 0:00:58]} 30. Rd7 {[%clk 0:02:29]}  Rb5 {[%clk 0:00:56]} 31. b3 {[%clk 0:02:29]}  g6 {[%clk 0:00:52]} 32. Rf1 {[%clk 0:02:28]}  Ng5 {[%clk 0:00:38]} 33. h4 {[%clk 0:02:27]}  Ke8 {[%clk 0:00:39]} 34. Rc7 {[%clk 0:02:23]}  Kd8 {[%clk 0:00:37]} 35. Rc4 {[%clk 0:02:20]}  Ne6 {[%clk 0:00:35]} 36. Rxf7 {[%clk 0:02:20]}  Re5 {[%clk 0:00:29]} 37. Kh2 {[%clk 0:02:19]}  b5 {[%clk 0:00:29]} 38. Rc2 {[%clk 0:02:18]}  a5 {[%clk 0:00:29]} 39. Rd2+ {[%clk 0:02:17]}  Ke8 {[%clk 0:00:29]} 40. Ra7 {[%clk 0:02:16]}  g5 {[%clk 0:00:26]} 41. Rdd7 {[%clk 0:02:15]}  gxh4 {[%clk 0:00:17]} 42. Rh7 {[%clk 0:02:14]}  b4 {[%clk 0:00:14]} 43. Rh8+ {[%clk 0:02:13]}  Nf8 {[%clk 0:00:14]} 44. Ra8+ {[%clk 0:02:13]}  Ke7 {[%clk 0:00:15]} 45. Rhxf8 {[%clk 0:02:13]} 1-0


[Site "https://www.chess.com"]

[Event "Titled Tuesday Blitz January 03 Early 2023"]
[White "Martinez Alcantara, Jose Eduardo"]
[Black "Putnam, Liam"]
[WhiteFideId "3805662"]
[BlackFideId "30938279"]
[WhiteElo "2619"]
[BlackElo "2285"]
[Result "1-0"]
[Round "03"]
[TimeControl "180+2"]
[Date "2023.01.03"]
[WhiteClock "0:00:05"]
[BlackClock "0:00:02"]

1. e4 {[%clk 0:03:00]}  c5 {[%clk 0:02:58]} 2. Nf3 {[%clk 0:03:01]}  d6 {[%clk 0:02:58]} 3. c3 {[%clk 0:03:02]}  Nf6 {[%clk 0:02:58]} 4. h3 {[%clk 0:03:02]}  Bd7 {[%clk 0:02:51]} 5. Bd3 {[%clk 0:03:02]}  Bc6 {[%clk 0:02:50]} 6. Qe2 {[%clk 0:03:02]}  Nbd7 {[%clk 0:02:49]} 7. Bc2 {[%clk 0:03:01]}  e6 {[%clk 0:02:39]} 8. d4 {[%clk 0:03:00]}  cxd4 {[%clk 0:02:40]} 9. cxd4 {[%clk 0:03:01]}  Be7 {[%clk 0:02:39]} 10. Nc3 {[%clk 0:03:01]}  O-O {[%clk 0:02:38]} 11. O-O {[%clk 0:03:01]}  a6 {[%clk 0:02:23]} 12. Rd1 {[%clk 0:02:56]}  b5 {[%clk 0:02:23]} 13. a3 {[%clk 0:02:55]}  Qc7 {[%clk 0:02:11]} 14. Bf4 {[%clk 0:02:53]}  e5 {[%clk 0:02:02]} 15. Be3 {[%clk 0:02:45]}  Rac8 {[%clk 0:01:54]} 16. Rac1 {[%clk 0:02:45]}  Rfe8 {[%clk 0:01:51]} 17. Bb1 {[%clk 0:02:45]}  Qb8 {[%clk 0:01:47]} 18. d5 {[%clk 0:02:06]}  Ba8 {[%clk 0:01:42]} 19. Nd2 {[%clk 0:02:07]}  Nb6 {[%clk 0:01:33]} 20. Bd3 {[%clk 0:02:04]}  Nfd7 {[%clk 0:01:32]} 21. b4 {[%clk 0:01:58]}  Rc7 {[%clk 0:01:29]} 22. Nb3 {[%clk 0:01:58]}  Rec8 {[%clk 0:01:29]} 23. Na2 {[%clk 0:01:56]}  Nc4 {[%clk 0:01:27]} 24. Bxc4 {[%clk 0:01:50]}  Rxc4 {[%clk 0:01:27]} 25. Rxc4 {[%clk 0:01:47]}  Rxc4 {[%clk 0:01:22]} 26. Na5 {[%clk 0:01:33]}  Rc7 {[%clk 0:00:50]} 27. Rc1 {[%clk 0:01:31]}  Nb6 {[%clk 0:00:47]} 28. Qd1 {[%clk 0:01:20]}  Bd8 {[%clk 0:00:42]} 29. Nc3 {[%clk 0:01:08]}  Nc4 {[%clk 0:00:41]} 30. Nxc4 {[%clk 0:01:02]}  Rxc4 {[%clk 0:00:42]} 31. Ne2 {[%clk 0:00:52]}  Qc8 {[%clk 0:00:41]} 32. f3 {[%clk 0:00:49]}  a5 {[%clk 0:00:38]} 33. Qd2 {[%clk 0:00:45]}  axb4 {[%clk 0:00:36]} 34. axb4 {[%clk 0:00:46]}  h6 {[%clk 0:00:35]} 35. Ra1 {[%clk 0:00:43]}  Bb7 {[%clk 0:00:35]} 36. Ra2 {[%clk 0:00:43]}  f5 {[%clk 0:00:34]} 37. exf5 {[%clk 0:00:40]}  Qxf5 {[%clk 0:00:35]} 38. Ng3 {[%clk 0:00:36]}  Qb1+ {[%clk 0:00:27]} 39. Kh2 {[%clk 0:00:35]}  Qxb4 {[%clk 0:00:22]} 40. Qd3 {[%clk 0:00:26]}  Qc3 {[%clk 0:00:22]} 41. Qg6 {[%clk 0:00:15]}  Qxe3 {[%clk 0:00:22]} 42. Qe8+ {[%clk 0:00:15]}  Kh7 {[%clk 0:00:22]} 43. Qxd8 {[%clk 0:00:16]}  Bxd5 {[%clk 0:00:18]} 44. Re2 {[%clk 0:00:16]}  Qd4 {[%clk 0:00:16]} 45. Qxd6 {[%clk 0:00:15]}  Rc1 {[%clk 0:00:14]} 46. Nf5 {[%clk 0:00:08]}  Qf4+ {[%clk 0:00:13]} 47. Ng3 {[%clk 0:00:08]}  Bc4 {[%clk 0:00:07]} 48. Re4 {[%clk 0:00:06]}  Qf6 {[%clk 0:00:05]} 49. Qd2 {[%clk 0:00:07]}  Ra1 {[%clk 0:00:04]} 50. Rg4 {[%clk 0:00:07]}  Ra2 {[%clk 0:00:04]} 51. Qe3 {[%clk 0:00:06]}  g6 {[%clk 0:00:04]} 52. Ne4 {[%clk 0:00:06]}  Qc6 {[%clk 0:00:03]} 53. Rg3 {[%clk 0:00:06]}  h5 {[%clk 0:00:04]} 54. Qg5 {[%clk 0:00:06]}  Qe6 {[%clk 0:00:03]} 55. Nf6+ {[%clk 0:00:05]}  Kg7 {[%clk 0:00:04]} 56. Nxh5+ {[%clk 0:00:06]}  Kf7 {[%clk 0:00:04]} 57. Qh6 {[%clk 0:00:05]}  Qf5 {[%clk 0:00:03]} 58. Qg7+ {[%clk 0:00:05]}  Ke6 {[%clk 0:00:03]} 59. Rxg6+ {[%clk 0:00:05]}  Kd5 {[%clk 0:00:03]} 60. Nf6+ {[%clk 0:00:05]}  Kc5 {[%clk 0:00:04]} 61. Qe7+ {[%clk 0:00:04]}  Kd4 {[%clk 0:00:03]} 62. Rg4+ {[%clk 0:00:04]}  Kc3 {[%clk 0:00:03]} 63. Ne4+ {[%clk 0:00:05]}  Kb2 {[%clk 0:00:03]} 64. Qb4+ {[%clk 0:00:04]}  Ka1 {[%clk 0:00:04]} 65. Qe1+ {[%clk 0:00:04]}  Kb2 {[%clk 0:00:04]} 66. Qc3+ {[%clk 0:00:04]}  Kb1 {[%clk 0:00:04]} 67. Nd2+ {[%clk 0:00:04]}  Rxd2 {[%clk 0:00:04]} 68. Qxd2 {[%clk 0:00:05]}  Qf6 {[%clk 0:00:02]} 69. Re4 {[%clk 0:00:05]} 1-0


[Site "https://www.chess.com"]